fUSD/lending_fUSD_20250426
["ID","MTS","AMOUNT","RATE_DAILY","PERIOD"]
[359075756,1745695843564,-400.0,0.00019593,2]
[359075757,1745695843573,-400.0,0.00019593,2]
[359075758,1745695843582,-400.0,0.00019593,2]
[359075759,1745695843591,-415.98,0.00019593,2]
[359075760,1745695843602,-400.0,0.00019593,2]
[359075761,1745695843611,-770.98,0.00019593,2]
[359075762,1745695843620,-400.0,0.00019593,2]
[359075763,1745695843629,-400.0,0.00019593,2]
[359075764,1745695843638,-855.58,0.00019593,2]
[359075765,1745695843647,-400.0,0.00019593,2]
[359075766,1745695843656,-367.5515378,0.00019593,2]
[359075767,1745695843666,-400.0,0.00019593,2]
[359075768,1745695843675,-400.0,0.00019593,2]
[359075769,1745695843685,-400.0,0.00019593,2]
[359075770,1745695843694,-400.0,0.00019593,2]
[359075771,1745695843703,-400.0,0.00019593,2]
[359075772,1745695843713,-400.0,0.00019593,2]
[359075773,1745695843722,-400.0,0.00019593,2]
[359075774,1745695843731,-664.99,0.00019593,2]
[359075775,1745695843740,-400.0,0.00019593,2]
[359075776,1745695843749,-411.47560896,0.00019593,2]
[359075777,1745695843759,-400.0,0.00019593,2]
[359075778,1745695843767,-400.0,0.00019593,2]
[359075779,1745695843776,-400.0,0.00019593,2]
[359075780,1745695843785,-400.0,0.00019593,2]
[359075781,1745695843794,-727.48,0.00019593,2]
[359075782,1745695843803,-200.0,0.00019593,2]
[359075783,1745695843813,-400.0,0.00019593,2]
[359075784,1745695843822,-500.0,0.00019593,2]
[359075785,1745695843831,-400.0,0.00019593,2]
[359075786,1745695843840,-586.98,0.00019593,2]
[359075787,1745695843850,-400.0,0.00019593,2]
[359075788,1745695843860,-400.0,0.00019593,2]
[359075789,1745695843870,-648.05,0.00019593,2]
[359075790,1745695843879,-512.4,0.00019593,2]
[359075791,1745695843890,-1208.81,0.00019593,2]
[359075792,1745695843900,-400.0,0.00019593,2]
[359075793,1745695843910,-400.0,0.00019593,2]
[359075794,1745695843920,-400.0,0.00019593,2]
[359075795,1745695843931,-400.0,0.00019593,2]
[359075796,1745695843940,-400.0,0.00019593,2]
[359075797,1745695843950,-400.0,0.00019593,2]
[359075798,1745695843959,-500.0,0.00019593,2]
[359075799,1745695843970,-766.44,0.00019593,2]
[359075800,1745695843980,-400.0,0.00019593,2]
[359075801,1745695843989,-468.07,0.00019593,2]
[359075802,1745695843999,-400.0,0.00019593,2]
[359075803,1745695844008,-400.0,0.00019593,2]
[359075804,1745695844018,-897.21,0.00019593,2]
[359075805,1745695844028,-400.0,0.00019593,2]
[359075806,1745695844038,-400.0,0.00019593,2]
[359075807,1745695844048,-977.98,0.00019593,2]
[359075808,1745695844058,-621.67,0.00019593,2]
[359075809,1745695844069,-980.74,0.00019593,2]
[359075810,1745695844079,-764.53,0.00019593,2]
[359075811,1745695844088,-150.0,0.00019593,2]
[359075812,1745695844097,-500.0,0.00019593,2]
[359075813,1745695844108,-2029.0,0.00019593,2]
[359075814,1745695844118,-500.0,0.00019593,2]
[359075815,1745695844128,-500.0,0.00019593,2]
[359075816,1745695844137,-500.0,0.00019594,2]
[359075817,1745695844146,-500.0,0.00019594,2]
[359075818,1745695844155,-500.0,0.00019595,2]
[359075819,1745695844165,-500.0,0.00019619,2]
[359075820,1745695844174,-500.0,0.0001962,2]
[359075821,1745695844183,-2029.0,0.0001962,2]
[359075822,1745695844192,-500.0,0.0001962,2]
[359075823,1745695844201,-500.0,0.0001962,2]
[359075824,1745695844211,-340.58983662,0.00019627,2]
[359075825,1745695844220,-834.36404406,0.00019627,2]
[359075826,1745695844230,-79318.98924027,0.0001964,2]
[359075827,1745695844241,-500.0,0.00019647,2]
[359075828,1745695844252,-500.0,0.00019648,2]
[359075829,1745695844262,-2029.0,0.00019648,2]
[359075830,1745695844271,-500.0,0.00019648,2]
[359075831,1745695844281,-500.0,0.00019648,2]
[359075832,1745695844290,-340.58983662,0.00019673,2]
[359075833,1745695844301,-834.36404406,0.00019673,2]
[359075834,1745695844311,-500.0,0.00019674,2]
[359075835,1745695844321,-500.0,0.00019675,2]
[359075836,1745695844330,-2029.0,0.00019675,2]
[359075837,1745695844340,-500.0,0.00019675,2]
[359075838,1745695844350,-500.0,0.00019675,2]
[359075839,1745695844359,-151.0,0.00019692,2]
[359075840,1745695844369,-151.0,0.00019692,2]
[359075841,1745695844378,-151.0,0.00019692,2]
[359075842,1745695844389,-151.0,0.00019692,2]
[359075843,1745695844399,-151.0,0.00019692,2]
[359075844,1745695844409,-151.0,0.00019692,2]
[359075845,1745695844419,-151.0,0.00019692,2]
[359075846,1745695844430,-151.0,0.00019692,2]
[359075847,1745695844440,-151.0,0.00019692,2]
[359075848,1745695844450,-151.0,0.00019692,2]
[359075849,1745695844460,-500.0,0.00019702,2]
[359075850,1745695844469,-500.0,0.00019703,2]
[359075851,1745695844480,-2029.0,0.00019703,2]
[359075852,1745695844491,-500.0,0.00019703,2]
[359075853,1745695844501,-500.0,0.00019703,2]
[359075854,1745695844511,-340.58983662,0.00019718,2]
[359075855,1745695844522,-834.36404406,0.00019718,2]
[359075856,1745695844532,-500.0,0.00019729,2]
[359075857,1745695844544,-500.0,0.0001973,2]
[359075858,1745695844553,-2029.0,0.0001973,2]
[359075859,1745695844563,-500.0,0.0001973,2]
[359075860,1745695844574,-500.0,0.0001973,2]
[359075861,1745695844583,-500.0,0.00019753,2]
[359075862,1745695844594,-481.47047009,0.00019756,2]
[359075863,1745695844603,-500.0,0.00019757,2]
[359075864,1745695844612,-2029.0,0.00019757,2]
[359075865,1745695844623,-500.0,0.00019757,2]
[359075866,1745695844633,-500.0,0.00019757,2]
[359075867,1745695844643,-340.58983662,0.00019764,2]
[359075868,1745695844652,-834.36404406,0.00019764,2]
[359075869,1745695844661,-181.63578013,0.00019766,2]
[359075870,1745695844670,-159.72068771,0.00019766,2]
[359075871,1745695844679,-419.25116851,0.00019785,2]
[359075872,1745695844688,-2029.0,0.00019785,2]
[359075873,1745695844697,-500.0,0.00019785,2]
[359075874,1745695844707,-500.0,0.00019785,2]
[359075875,1745695844716,-359.07922638,0.0001979,2]
[359075876,1745695844725,-521.326708,0.00019792,2]
[359075877,1745695844734,-549.428371,0.00019792,2]
[359075878,1745695844743,-521.326708,0.00019793,2]
[359075879,1745695844752,-549.428371,0.00019793,2]
[359075880,1745695844761,-521.326708,0.00019795,2]
[359075881,1745695844770,-549.428371,0.00019795,2]
[359075882,1745695844779,-521.326708,0.00019797,2]
[359075883,1745695844788,-549.428371,0.00019797,2]
[359075884,1745695844798,-521.326708,0.00019798,2]
[359075885,1745695844807,-549.428371,0.00019798,2]
[359075886,1745695844817,-352.0175036,0.00019799,2]
[359075887,1745695844826,-700034.34649796,0.000198,2]
[359075888,1745695844836,-340.58983662,0.00019809,2]
[359075889,1745695844845,-834.36404406,0.00019809,2]
[359075890,1745695844855,-2029.0,0.00019812,2]
[359075891,1745695844864,-500.0,0.00019812,2]
[359075892,1745695844874,-500.0,0.00019812,2]
[359075893,1745695844883,-667.28507421,0.00019812,2]
[359075894,1745695844897,-2667.0,0.00019836,2]
[359075895,1745695844906,-2029.0,0.0001984,2]
[359075896,1745695844916,-500.0,0.0001984,2]
[359075897,1745695844925,-500.0,0.0001984,2]
[359075898,1745695844935,-340.58983662,0.00019855,2]
[359075899,1745695844944,-2000.0,0.00019862,2]
[359075900,1745695844954,-56024.14957692,0.00019863,2]
[359075901,1745695845779,-300.75060262,0.00019591,2]
[359075902,1745695845801,-99.24939738,0.00019591,2]
[359075903,1745695845810,-400.0,0.00019591,2]
[359075904,1745695845832,-576.96154301,0.00019863,2]
[359075905,1745695845846,-7564.3617255,0.00019863,2]
[359075906,1745695845998,-2200.0,0.00019863,2]
[359075907,1745695846043,-1059.51026335,0.00019863,2]
[359075908,1745695846123,-5528.63752904,0.00019863,2]
[359075909,1745695846133,-2149.0,0.00019865,2]
[359075910,1745695846142,-3991.0,0.00019865,2]
[359075911,1745695846152,-920.0,0.00019865,2]
[359075912,1745695846162,-872.0,0.00019865,2]
[359075913,1745695846172,-455.5,0.00019865,2]
[359075914,1745695846182,-581.19,0.00019865,2]
[359075915,1745695846193,-868.84,0.00019865,2]
[359075916,1745695846204,-294.73291542,0.00019865,2]
[359075917,1745695846214,-406.5,0.00019865,2]
[359075918,1745695846224,-400.0,0.00019865,2]
[359075919,1745695846236,-400.0,0.00019865,2]
[359075920,1745695846248,-400.0,0.00019865,2]
[359075921,1745695846259,-400.0,0.00019865,2]
[359075922,1745695846268,-400.0,0.00019865,2]
[359075923,1745695846278,-1391.59,0.00019865,2]
[359075924,1745695846293,-400.0,0.00019865,2]
[359075925,1745695846303,-528.96,0.00019865,2]
[359075926,1745695846314,-432.02,0.00019865,2]
[359075927,1745695846323,-400.0,0.00019865,2]
[359075928,1745695846333,-602.73,0.00019865,2]
[359075929,1745695846343,-694.7,0.00019865,2]
[359075930,1745695846352,-484.8,0.00019865,2]
[359075931,1745695846362,-570.78,0.00019865,2]
[359075932,1745695846372,-642.33,0.00019865,2]
[359075933,1745695846383,-646.22,0.00019865,2]
[359075934,1745695846393,-628.03,0.00019865,2]
[359075935,1745695846404,-400.0,0.00019865,2]
[359075936,1745695846414,-485.83,0.00019865,2]
[359075937,1745695846424,-596.67,0.00019865,2]
[359075938,1745695846434,-400.0,0.00019865,2]
[359075939,1745695846444,-454.98,0.00019865,2]
[359075940,1745695846453,-457.05,0.00019865,2]
[359075941,1745695846463,-672.5,0.00019865,2]
[359075942,1745695846474,-730.71,0.00019865,2]
[359075943,1745695846485,-507.67,0.00019865,2]
[359075944,1745695846496,-400.0,0.00019865,2]
[359075945,1745695846505,-322.0235213,0.00019865,2]
[359075946,1745695846515,-597.79,0.00019865,2]
[359075947,1745695846524,-469.57,0.00019865,2]
[359075948,1745695846534,-1167.97,0.00019865,2]
[359075949,1745695846543,-540.79,0.00019865,2]
[359075950,1745695846777,-400.0,0.00019865,2]
[359075951,1745695846796,-400.0,0.00019865,2]
[359075952,1745695846806,-400.0,0.00019865,2]
[359075953,1745695846816,-400.0,0.00019865,2]
[359075954,1745695846826,-400.0,0.00019865,2]
[359075955,1745695846836,-400.0,0.00019865,2]
[359075956,1745695846846,-928.52,0.00019865,2]
[359075957,1745695846857,-809.03,0.00019865,2]
[359075958,1745695846867,-580.6,0.00019865,2]
[359075959,1745695846877,-400.0,0.00019865,2]
[359075960,1745695846888,-344.69260139,0.00019865,2]
[359075961,1745695846899,-799.21,0.00019865,2]
[359075962,1745695846909,-400.0,0.00019865,2]
[359075963,1745695846919,-400.0,0.00019865,2]
[359075964,1745695846929,-400.0,0.00019865,2]
[359075965,1745695846938,-556.51,0.00019865,2]
[359075966,1745695846949,-400.0,0.00019865,2]
[359075967,1745695846958,-400.0,0.00019865,2]
[359075968,1745695846969,-450.15,0.00019865,2]
[359075969,1745695846980,-400.0,0.00019865,2]
[359075970,1745695846989,-400.0,0.00019865,2]
[359075971,1745695846999,-400.0,0.00019865,2]
[359075972,1745695847010,-683.44,0.00019865,2]
[359075973,1745695847020,-524.85,0.00019865,2]
[359075974,1745695847030,-400.0,0.00019865,2]
[359075975,1745695847040,-400.0,0.00019865,2]
[359075976,1745695847050,-429.17,0.00019865,2]
[359075977,1745695847059,-400.0,0.00019865,2]
[359075978,1745695847069,-627.37,0.00019865,2]
[359075979,1745695847080,-400.0,0.00019865,2]
[359075980,1745695847091,-400.0,0.00019865,2]
[359075981,1745695847108,-788.17,0.00019865,2]
[359075982,1745695847118,-400.0,0.00019865,2]
[359075983,1745695847129,-400.0,0.00019865,2]
[359075984,1745695847140,-400.0,0.00019865,2]
[359075985,1745695847152,-507.5,0.00019865,2]
[359075986,1745695847162,-400.0,0.00019865,2]
[359075987,1745695847172,-400.0,0.00019865,2]
[359075988,1745695847183,-400.0,0.00019865,2]
[359075989,1745695847196,-526.41,0.00019865,2]
[359075990,1745695847208,-456.9,0.00019865,2]
[359075991,1745695847218,-400.0,0.00019865,2]
[359075992,1745695847228,-400.0,0.00019865,2]
[359075993,1745695847239,-400.0,0.00019865,2]
[359075994,1745695847250,-400.0,0.00019865,2]
[359075995,1745695847261,-690.97,0.00019865,2]
[359075996,1745695847272,-400.0,0.00019865,2]
[359075997,1745695847284,-558.34,0.00019865,2]
[359075998,1745695847294,-400.0,0.00019865,2]
[359075999,1745695847305,-721.17,0.00019865,2]
[359076000,1745695847315,-115510.77,0.00019865,2]
[359076001,1745695847324,-459.43,0.00019865,2]
[359076002,1745695847334,-476.95,0.00019865,2]
[359076003,1745695847346,-2618.8,0.00019865,2]
[359076004,1745695847357,-400.0,0.00019865,2]
[359076005,1745695847367,-611.65,0.00019865,2]
[359076006,1745695847378,-400.0,0.00019865,2]
[359076007,1745695847389,-483.71,0.00019865,2]
[359076008,1745695847401,-564.65,0.00019865,2]
[359076009,1745695847413,-816.17,0.00019865,2]
[359076010,1745695847425,-460.86,0.00019865,2]
[359076011,1745695847436,-400.0,0.00019865,2]
[359076012,1745695847447,-400.0,0.00019865,2]
[359076013,1745695847458,-400.0,0.00019865,2]
[359076014,1745695847469,-434.87,0.00019865,2]
[359076015,1745695847480,-400.0,0.00019865,2]
[359076016,1745695847491,-679.2,0.00019865,2]
[359076017,1745695847502,-400.0,0.00019865,2]
[359076018,1745695847512,-636.4,0.00019865,2]
[359076019,1745695847523,-576.03,0.00019865,2]
[359076020,1745695847547,-400.0,0.00019865,2]
[359076021,1745695847560,-1069.94,0.00019865,2]
[359076022,1745695847570,-666.7,0.00019865,2]
[359076023,1745695847580,-486.01,0.00019865,2]
[359076024,1745695847592,-400.0,0.00019865,2]
[359076025,1745695847603,-400.0,0.00019865,2]
[359076026,1745695847613,-435.41,0.00019865,2]
[359076027,1745695847625,-400.0,0.00019865,2]
[359076028,1745695847635,-400.0,0.00019865,2]
[359076029,1745695847646,-409.12,0.00019865,2]
[359076030,1745695847656,-621.97,0.00019865,2]
[359076031,1745695847666,-1507.71,0.00019865,2]
[359076032,1745695847677,-400.0,0.00019865,2]
[359076033,1745695847688,-776.21,0.00019865,2]
[359076034,1745695847699,-1000.21,0.00019865,2]
[359076035,1745695847711,-444.26,0.00019865,2]
[359076036,1745695847723,-875.61,0.00019865,2]
[359076037,1745695847734,-973.83,0.00019865,2]
[359076038,1745695847744,-3154.18,0.00019865,2]
[359076039,1745695847756,-400.0,0.00019865,2]
[359076040,1745695847766,-489.11,0.00019865,2]
[359076041,1745695847777,-400.0,0.00019865,2]
[359076042,1745695847787,-863.8,0.00019865,2]
[359076043,1745695847798,-541.22,0.00019865,2]
[359076044,1745695847809,-400.0,0.00019865,2]
[359076045,1745695847820,-400.0,0.00019865,2]
[359076046,1745695847831,-400.0,0.00019865,2]
[359076047,1745695847842,-1146.82,0.00019865,2]
[359076048,1745695847852,-688.9,0.00019865,2]
[359076049,1745695847863,-400.0,0.00019865,2]
[359076050,1745695847874,-516.56,0.00019865,2]
[359076051,1745695847885,-400.0,0.00019865,2]
[359076052,1745695847899,-519.32,0.00019865,2]
[359076053,1745695847911,-526.1,0.00019865,2]
[359076054,1745695847922,-1201.78,0.00019865,2]
[359076055,1745695847934,-521.67,0.00019865,2]
[359076056,1745695847944,-723.45,0.00019865,2]
[359076057,1745695847955,-400.0,0.00019865,2]
[359076058,1745695847972,-400.0,0.00019865,2]
[359076059,1745695847983,-474.13,0.00019865,2]
[359076060,1745695847994,-400.0,0.00019865,2]
[359076061,1745695848006,-646.25,0.00019865,2]
[359076062,1745695848017,-3117.56,0.00019865,2]
[359076063,1745695848028,-1815.91,0.00019865,2]
[359076064,1745695848039,-400.0,0.00019865,2]
[359076065,1745695848050,-400.0,0.00019865,2]
[359076066,1745695848061,-1104.12,0.00019865,2]
[359076067,1745695848073,-730.49,0.00019865,2]
[359076068,1745695848084,-542.99,0.00019865,2]
[359076069,1745695848095,-559.04,0.00019865,2]
[359076070,1745695848107,-414.97,0.00019865,2]
[359076071,1745695848119,-400.0,0.00019865,2]
[359076072,1745695848130,-848.69,0.00019865,2]
[359076073,1745695848141,-482.1,0.00019865,2]
[359076074,1745695848152,-1074.41,0.00019865,2]
[359076075,1745695848163,-400.0,0.00019865,2]
[359076076,1745695848174,-789.73,0.00019865,2]
[359076077,1745695848185,-937.97,0.00019865,2]
[359076078,1745695848197,-400.0,0.00019865,2]
[359076079,1745695848208,-400.0,0.00019865,2]
[359076080,1745695848219,-426.06,0.00019865,2]
[359076081,1745695848230,-400.0,0.00019865,2]
[359076082,1745695848241,-400.0,0.00019865,2]
[359076083,1745695848251,-7261.22,0.00019865,2]
[359076084,1745695848262,-400.0,0.00019865,2]
[359076085,1745695848274,-681.3,0.00019865,2]
[359076086,1745695848284,-400.0,0.00019865,2]
[359076087,1745695848295,-727.72,0.00019865,2]
[359076088,1745695848305,-99782.14,0.00019865,2]
[359076089,1745695848315,-400.0,0.00019865,2]
[359076090,1745695848326,-689.35,0.00019865,2]
[359076091,1745695848338,-564.43,0.00019865,2]
[359076092,1745695848349,-400.0,0.00019865,2]
[359076093,1745695848360,-634.7,0.00019865,2]
[359076094,1745695848371,-400.0,0.00019865,2]
[359076095,1745695848382,-400.0,0.00019865,2]
[359076096,1745695848392,-525.75,0.00019865,2]
[359076097,1745695848403,-567.66,0.00019865,2]
[359076098,1745695848413,-10574.07,0.00019865,2]
[359076099,1745695848424,-724.21,0.00019865,2]
[359076100,1745695848435,-527.19,0.00019865,2]
[359076101,1745695848446,-423.65,0.00019865,2]
[359076102,1745695848456,-635.72,0.00019865,2]
[359076103,1745695848467,-3522.85,0.00019865,2]
[359076104,1745695848478,-698.33,0.00019865,2]
[359076105,1745695848489,-5603.99,0.00019865,2]
[359076106,1745695848499,-712.83,0.00019865,2]
[359076107,1745695848509,-400.0,0.00019865,2]
[359076108,1745695848520,-429.89,0.00019865,2]
[359076109,1745695848531,-400.0,0.00019865,2]
[359076110,1745695848541,-400.0,0.00019865,2]
[359076111,1745695848551,-647.28,0.00019865,2]
[359076112,1745695848562,-548.1,0.00019865,2]
[359076113,1745695848572,-400.0,0.00019865,2]
[359076114,1745695848583,-819.91,0.00019865,2]
[359076115,1745695848594,-2130.89,0.00019865,2]
[359076116,1745695848604,-400.0,0.00019865,2]
[359076117,1745695848616,-638.99,0.00019865,2]
[359076118,1745695848627,-492.88,0.00019865,2]
[359076119,1745695848637,-400.0,0.00019865,2]
[359076120,1745695848648,-405.95,0.00019865,2]
[359076121,1745695848658,-400.0,0.00019865,2]
[359076122,1745695848669,-400.0,0.00019865,2]
[359076123,1745695848680,-9418.438578,0.00019865,2]
[359076124,1745695848690,-511.02,0.00019865,2]
[359076125,1745695848700,-400.0,0.00019865,2]
[359076126,1745695848712,-400.0,0.00019866,2]
[359076127,1745695848723,-400.0,0.00019866,2]
[359076128,1745695848734,-379.23842897,0.00019866,2]
[359076129,1745695848744,-400.0,0.00019866,2]
[359076130,1745695848755,-400.0,0.00019866,2]
[359076131,1745695848766,-400.0,0.00019866,2]
[359076132,1745695848776,-587.65,0.00019866,2]
[359076133,1745695848787,-400.0,0.00019866,2]
[359076134,1745695848797,-400.0,0.00019866,2]
[359076135,1745695848808,-400.0,0.00019866,2]
[359076136,1745695848819,-400.0,0.00019866,2]
[359076137,1745695848829,-400.0,0.00019866,2]
[359076138,1745695848841,-400.0,0.00019866,2]
[359076139,1745695848852,-400.0,0.00019866,2]
[359076140,1745695848863,-250.0,0.00019866,2]
[359076141,1745695848873,-400.0,0.00019866,2]
[359076142,1745695848884,-400.0,0.00019866,2]
[359076143,1745695848898,-400.0,0.00019866,2]
[359076144,1745695848908,-550.0,0.00019866,2]
[359076145,1745695848918,-208.18738469,0.00019866,2]
[359076146,1745695848929,-400.0,0.00019866,2]
[359076147,1745695848939,-400.0,0.00019866,2]
[359076148,1745695848950,-400.0,0.00019866,2]
[359076149,1745695848960,-656.97,0.00019866,2]
[359076150,1745695848971,-511.05,0.00019866,2]
[359076151,1745695848983,-985.75,0.00019866,2]
[359076152,1745695848993,-400.0,0.00019866,2]
[359076153,1745695849004,-400.0,0.00019866,2]
[359076154,1745695849014,-400.0,0.00019866,2]
[359076155,1745695849025,-513.98,0.00019866,2]
[359076156,1745695849035,-400.0,0.00019866,2]
[359076157,1745695849046,-400.0,0.00019866,2]
[359076158,1745695849056,-400.0,0.00019866,2]
[359076159,1745695849067,-418.32,0.00019866,2]
[359076160,1745695849077,-400.0,0.00019866,2]
[359076161,1745695849088,-400.0,0.00019866,2]
[359076162,1745695849098,-509.34515444,0.00019866,2]
[359076163,1745695849110,-400.0,0.00019866,2]
[359076164,1745695849120,-400.0,0.00019866,2]
[359076165,1745695849131,-400.0,0.00019866,2]
[359076166,1745695849141,-185.06411496,0.00019866,2]
[359076167,1745695849152,-400.0,0.00019866,2]
[359076168,1745695849162,-400.0,0.00019866,2]
[359076169,1745695849172,-400.0,0.00019866,2]
[359076170,1745695849182,-618.06,0.00019866,2]
[359076171,1745695849193,-400.0,0.00019866,2]
[359076172,1745695849203,-400.0,0.00019866,2]
[359076173,1745695849213,-930.74,0.00019866,2]
[359076174,1745695849223,-400.0,0.00019866,2]
[359076175,1745695849234,-400.0,0.00019866,2]
[359076176,1745695849244,-623.52,0.00019866,2]
[359076177,1745695849255,-594.75,0.00019866,2]
[359076178,1745695849265,-400.0,0.00019866,2]
[359076179,1745695849275,-400.0,0.00019866,2]
[359076180,1745695849286,-504.99,0.00019866,2]
[359076181,1745695849296,-477.54,0.00019866,2]
[359076182,1745695849306,-482.63,0.00019866,2]
[359076183,1745695849317,-400.0,0.00019866,2]
[359076184,1745695849326,-1016.19,0.00019866,2]
[359076185,1745695849337,-400.0,0.00019866,2]
[359076186,1745695849348,-625.6,0.00019866,2]
[359076187,1745695849744,-839.76,0.00019866,2]
[359076188,1745695849754,-707.76,0.00019866,2]
[359076189,1745695849764,-422.56,0.00019866,2]
[359076190,1745695849774,-790.27,0.00019866,2]
[359076191,1745695849784,-400.0,0.00019866,2]
[359076192,1745695849795,-400.0,0.00019866,2]
[359076193,1745695849804,-400.0,0.00019866,2]
[359076194,1745695849815,-400.0,0.00019866,2]
[359076195,1745695849825,-400.0,0.00019866,2]
[359076196,1745695849835,-400.0,0.00019866,2]
[359076197,1745695849844,-743.16,0.00019866,2]
[359076198,1745695849855,-1000.0,0.00019866,2]
[359076199,1745695849865,-400.0,0.00019866,2]
[359076200,1745695849875,-400.0,0.00019866,2]
[359076201,1745695849886,-920.33,0.00019866,2]
[359076202,1745695849899,-421.59,0.00019866,2]
[359076203,1745695849909,-547.47,0.00019866,2]
[359076204,1745695849920,-400.0,0.00019866,2]
[359076205,1745695849930,-629.35,0.00019866,2]
[359076206,1745695849943,-300.0,0.00019866,2]
[359076207,1745695849954,-400.0,0.00019866,2]
[359076208,1745695849966,-801.35,0.00019866,2]
[359076209,1745695849977,-400.0,0.00019866,2]
[359076210,1745695849987,-400.0,0.00019866,2]
[359076211,1745695849997,-424.0,0.00019866,2]
[359076212,1745695850009,-400.0,0.00019866,2]
[359076213,1745695850020,-400.0,0.00019866,2]
[359076214,1745695850031,-660.18,0.00019866,2]
[359076215,1745695850041,-400.0,0.00019866,2]
[359076216,1745695850052,-400.0,0.00019866,2]
[359076217,1745695850062,-497.76,0.00019866,2]
[359076218,1745695850072,-400.0,0.00019866,2]
[359076219,1745695850082,-686.56,0.00019866,2]
[359076220,1745695850092,-300.0,0.00019866,2]
[359076221,1745695850102,-400.0,0.00019866,2]
[359076222,1745695850112,-400.0,0.00019866,2]
[359076223,1745695850122,-400.0,0.00019866,2]
[359076224,1745695850131,-400.0,0.00019866,2]
[359076225,1745695850141,-400.0,0.00019866,2]
[359076226,1745695850150,-400.0,0.00019866,2]
[359076227,1745695850160,-400.0,0.00019866,2]
[359076228,1745695850170,-1612.4,0.00019866,2]
[359076229,1745695850180,-400.0,0.00019866,2]
[359076230,1745695850191,-400.0,0.00019866,2]
[359076231,1745695850201,-400.0,0.00019866,2]
[359076232,1745695850212,-199.35,0.00019866,2]
[359076233,1745695850221,-400.0,0.00019866,2]
[359076234,1745695850231,-400.0,0.00019866,2]
[359076235,1745695850240,-400.0,0.00019866,2]
[359076236,1745695850250,-214.32753968,0.00019866,2]
[359076237,1745695850259,-400.0,0.00019866,2]
[359076238,1745695850269,-400.0,0.00019866,2]
[359076239,1745695850279,-623.15,0.00019866,2]
[359076240,1745695850288,-400.0,0.00019866,2]
[359076241,1745695850297,-400.0,0.00019866,2]
[359076242,1745695850307,-568.81,0.00019866,2]
[359076243,1745695850319,-400.0,0.00019866,2]
[359076244,1745695850328,-1841.1,0.00019866,2]
[359076245,1745695850338,-490.68,0.00019866,2]
[359076246,1745695850347,-316.41787848,0.00019866,2]
[359076247,1745695850357,-803.24,0.00019866,2]
[359076248,1745695850367,-631.82,0.00019866,2]
[359076249,1745695850376,-400.0,0.00019866,2]
[359076250,1745695850387,-400.0,0.00019866,2]
[359076251,1745695850397,-400.0,0.00019866,2]
[359076252,1745695850406,-642.83,0.00019866,2]
[359076253,1745695850416,-515.12,0.00019866,2]
[359076254,1745695850425,-528.83,0.00019866,2]
[359076255,1745695850436,-400.0,0.00019866,2]